[Event "Titled Tuesday Blitz May 16 Late 2023"]
[White "Moral Garcia, Serafin"]
[Black "Camilla_Lee"]
[WhiteFideId "2201925"]
[WhiteElo "2274"]
[BlackElo "2617"]
[Result "1-0"]
[Round "09"]
[TimeControl "180+2"]
[Date "2023.05.16"]
[WhiteClock "0:00:21"]
[BlackClock "0:00:00"]

1. c4 {[%clk 0:03:00]}  Nf6 {[%clk 0:02:59]} 2. Nc3 {[%clk 0:03:00]}  d5 {[%clk 0:02:59]} 3. cxd5 {[%clk 0:02:59]}  Nxd5 {[%clk 0:03:00]} 4. g3 {[%clk 0:02:58]}  g6 {[%clk 0:02:58]} 5. Bg2 {[%clk 0:02:58]}  Nxc3 {[%clk 0:02:55]} 6. bxc3 {[%clk 0:02:59]}  Bg7 {[%clk 0:02:55]} 7. Rb1 {[%clk 0:02:59]}  c6 {[%clk 0:02:52]} 8. Qb3 {[%clk 0:02:59]}  O-O {[%clk 0:02:51]} 9. d3 {[%clk 0:02:59]}  a5 {[%clk 0:02:45]} 10. Be3 {[%clk 0:02:56]}  a4 {[%clk 0:02:45]} 11. Qc2 {[%clk 0:02:51]}  Qa5 {[%clk 0:02:39]} 12. Bd2 {[%clk 0:02:44]}  a3 {[%clk 0:02:39]} 13. c4 {[%clk 0:02:44]}  Qc7 {[%clk 0:02:38]} 14. Nf3 {[%clk 0:02:37]}  Bg4 {[%clk 0:02:32]} 15. Bc3 {[%clk 0:02:37]}  Bxf3 {[%clk 0:02:32]} 16. Bxf3 {[%clk 0:02:36]}  e5 {[%clk 0:02:31]} 17. O-O {[%clk 0:02:34]}  Nd7 {[%clk 0:02:30]} 18. Qd2 {[%clk 0:02:20]}  Rfe8 {[%clk 0:02:28]} 19. Qe3 {[%clk 0:02:14]}  f5 {[%clk 0:02:22]} 20. Rb3 {[%clk 0:02:11]}  f4 {[%clk 0:01:36]} 21. gxf4 {[%clk 0:02:07]}  exf4 {[%clk 0:01:36]} 22. Qd2 {[%clk 0:02:07]}  Nc5 {[%clk 0:01:33]} 23. Rb4 {[%clk 0:02:03]}  Rad8 {[%clk 0:01:25]} 24. Rfb1 {[%clk 0:02:00]}  Bxc3 {[%clk 0:01:17]} 25. Qxc3 {[%clk 0:01:59]}  Qe5 {[%clk 0:01:17]} 26. Qxe5 {[%clk 0:01:54]}  Rxe5 {[%clk 0:01:17]} 27. Kf1 {[%clk 0:01:52]}  Re7 {[%clk 0:01:00]} 28. Rc1 {[%clk 0:01:51]}  Red7 {[%clk 0:00:52]} 29. Rc3 {[%clk 0:01:48]}  Ra8 {[%clk 0:00:53]} 30. Ke1 {[%clk 0:01:45]}  Kf7 {[%clk 0:00:52]} 31. Kd2 {[%clk 0:01:45]}  Kf6 {[%clk 0:00:51]} 32. e3 {[%clk 0:01:45]}  g5 {[%clk 0:00:48]} 33. d4 {[%clk 0:01:44]}  Ne6 {[%clk 0:00:43]} 34. c5 {[%clk 0:01:38]}  h5 {[%clk 0:00:38]} 35. Kc2 {[%clk 0:01:30]}  g4 {[%clk 0:00:38]} 36. Be2 {[%clk 0:01:28]}  f3 {[%clk 0:00:37]} 37. Bc4 {[%clk 0:01:28]}  Ng5 {[%clk 0:00:36]} 38. Kd3 {[%clk 0:01:16]}  Kf5 {[%clk 0:00:27]} 39. Rc2 {[%clk 0:01:01]}  Ne4 {[%clk 0:00:26]} 40. Bb3 {[%clk 0:00:55]}  Nf6 {[%clk 0:00:18]} 41. Ra4 {[%clk 0:00:50]}  Rxa4 {[%clk 0:00:17]} 42. Bxa4 {[%clk 0:00:51]}  h4 {[%clk 0:00:17]} 43. Rc1 {[%clk 0:00:43]}  Ne4 {[%clk 0:00:16]} 44. Rf1 {[%clk 0:00:38]}  Re7 {[%clk 0:00:12]} 45. Bc2 {[%clk 0:00:38]}  Kg5 {[%clk 0:00:12]} 46. Bd1 {[%clk 0:00:35]}  Nf6 {[%clk 0:00:11]} 47. h3 {[%clk 0:00:35]}  gxh3 {[%clk 0:00:07]} 48. Bxf3 {[%clk 0:00:34]}  h2 {[%clk 0:00:06]} 49. Rh1 {[%clk 0:00:33]}  Nd5 {[%clk 0:00:06]} 50. Bxd5 {[%clk 0:00:32]}  cxd5 {[%clk 0:00:07]} 51. Rxh2 {[%clk 0:00:32]}  Kg4 {[%clk 0:00:07]} 52. Ke2 {[%clk 0:00:28]}  h3 {[%clk 0:00:07]} 53. Rh1 {[%clk 0:00:28]}  Rh7 {[%clk 0:00:06]} 54. f3+ {[%clk 0:00:21]}  Kg3 {[%clk 0:00:06]} 55. Rg1+ {[%clk 0:00:21]}  Kh2 {[%clk 0:00:00]} 56. Kf2 {[%clk 0:00:21]} 1-0


[Site "https://www.chess.com"]

[Event "Titled Tuesday Blitz May 16 Late 2023"]
[White "Mickiewicz, Piotr"]
[Black "Tisaj, Domen"]
[WhiteFideId "1114891"]
[BlackFideId "14628708"]
[WhiteElo "2246"]
[BlackElo "2340"]
[Result "1-0"]
[Round "09"]
[TimeControl "180+2"]
[Date "2023.05.16"]
[WhiteClock "0:00:32"]
[BlackClock "0:01:15"]

1. c4 {[%clk 0:03:00]}  Nf6 {[%clk 0:02:52]} 2. g3 {[%clk 0:02:59]}  g6 {[%clk 0:02:52]} 3. Bg2 {[%clk 0:03:00]}  Bg7 {[%clk 0:02:53]} 4. Nc3 {[%clk 0:02:59]}  d6 {[%clk 0:02:53]} 5. d4 {[%clk 0:02:59]}  Nbd7 {[%clk 0:02:53]} 6. e3 {[%clk 0:02:59]}  O-O {[%clk 0:02:54]} 7. Nge2 {[%clk 0:02:58]}  e5 {[%clk 0:02:54]} 8. O-O {[%clk 0:02:57]}  Re8 {[%clk 0:02:54]} 9. a4 {[%clk 0:02:52]}  exd4 {[%clk 0:02:54]} 10. exd4 {[%clk 0:02:50]}  Nb6 {[%clk 0:02:53]} 11. a5 {[%clk 0:02:42]}  Nxc4 {[%clk 0:02:43]} 12. b3 {[%clk 0:02:41]}  Nxa5 {[%clk 0:02:39]} 13. Rxa5 {[%clk 0:02:41]}  c5 {[%clk 0:02:40]} 14. Ra2 {[%clk 0:02:36]}  Bg4 {[%clk 0:02:38]} 15. h3 {[%clk 0:02:26]}  Be6 {[%clk 0:02:35]} 16. Be3 {[%clk 0:02:12]}  Qb6 {[%clk 0:02:33]} 17. Rb2 {[%clk 0:01:28]}  Rad8 {[%clk 0:02:28]} 18. Nf4 {[%clk 0:01:23]}  Nd7 {[%clk 0:02:15]} 19. Nxe6 {[%clk 0:01:22]}  fxe6 {[%clk 0:02:14]} 20. dxc5 {[%clk 0:01:10]}  Qa5 {[%clk 0:02:14]} 21. b4 {[%clk 0:01:08]}  Qc7 {[%clk 0:02:06]} 22. Nb5 {[%clk 0:01:06]}  Qb8 {[%clk 0:02:03]} 23. Rd2 {[%clk 0:01:05]}  d5 {[%clk 0:02:00]} 24. Nd6 {[%clk 0:01:05]}  Rf8 {[%clk 0:01:58]} 25. f4 {[%clk 0:01:01]}  b6 {[%clk 0:01:56]} 26. Bd4 {[%clk 0:00:58]}  Bxd4+ {[%clk 0:01:53]} 27. Rxd4 {[%clk 0:00:59]}  bxc5 {[%clk 0:01:54]} 28. bxc5 {[%clk 0:00:58]}  Nxc5 {[%clk 0:01:54]} 29. Rxd5 {[%clk 0:00:56]}  exd5 {[%clk 0:01:43]} 30. Qxd5+ {[%clk 0:00:57]}  Kg7 {[%clk 0:01:38]} 31. Qe5+ {[%clk 0:00:58]}  Rf6 {[%clk 0:01:36]} 32. Qe7+ {[%clk 0:00:50]}  Kh6 {[%clk 0:01:33]} 33. g4 {[%clk 0:00:42]}  Rd7 {[%clk 0:01:17]} 34. g5+ {[%clk 0:00:37]}  Kh5 {[%clk 0:01:17]} 35. Qe2+ {[%clk 0:00:31]}  Kh4 {[%clk 0:01:15]} 36. Qg4# {[%clk 0:00:32]} 1-0


[Site "https://www.chess.com"]

[Event "Titled Tuesday Blitz May 16 Late 2023"]
[White "Harshavardhan G B"]
[Black "Ognean, Mihnea-Ionut"]
[WhiteFideId "25059009"]
[BlackFideId "1232347"]
[WhiteElo "2323"]
[BlackElo "2215"]
[Result "1-0"]
[Round "09"]
[TimeControl "180+2"]
[Date "2023.05.16"]
[WhiteClock "0:01:00"]
[BlackClock "0:00:06"]

1. Nf3 {[%clk 0:03:00]}  c5 {[%clk 0:02:59]} 2. c4 {[%clk 0:02:58]}  Nc6 {[%clk 0:02:58]} 3. Nc3 {[%clk 0:02:57]}  g6 {[%clk 0:02:58]} 4. h4 {[%clk 0:02:56]}  Nf6 {[%clk 0:02:56]} 5. e4 {[%clk 0:02:57]}  d6 {[%clk 0:02:54]} 6. d3 {[%clk 0:02:55]}  Bg7 {[%clk 0:02:54]} 7. Be2 {[%clk 0:02:53]}  Bg4 {[%clk 0:02:54]} 8. Nd5 {[%clk 0:02:52]}  Bxf3 {[%clk 0:02:53]} 9. Bxf3 {[%clk 0:02:51]}  e6 {[%clk 0:02:38]} 10. Nxf6+ {[%clk 0:02:50]}  Bxf6 {[%clk 0:02:39]} 11. h5 {[%clk 0:02:49]}  Nd4 {[%clk 0:02:34]} 12. a3 {[%clk 0:02:42]}  Qe7 {[%clk 0:02:19]} 13. Rb1 {[%clk 0:02:38]}  Rg8 {[%clk 0:02:07]} 14. hxg6 {[%clk 0:02:35]}  hxg6 {[%clk 0:02:06]} 15. b4 {[%clk 0:02:35]}  Bg5 {[%clk 0:01:36]} 16. bxc5 {[%clk 0:02:29]}  dxc5 {[%clk 0:01:32]} 17. Bxg5 {[%clk 0:02:27]}  Qxg5 {[%clk 0:01:33]} 18. Rxb7 {[%clk 0:02:27]}  Kf8 {[%clk 0:01:23]} 19. Qd2 {[%clk 0:02:17]}  Qf6 {[%clk 0:01:12]} 20. Rh7 {[%clk 0:02:11]}  Rd8 {[%clk 0:01:04]} 21. Qh6+ {[%clk 0:02:09]}  Ke8 {[%clk 0:01:04]} 22. Rhxf7 {[%clk 0:02:01]}  Qxf7 {[%clk 0:01:02]} 23. Rxf7 {[%clk 0:02:02]}  Kxf7 {[%clk 0:01:00]} 24. Qf4+ {[%clk 0:01:59]}  Ke8 {[%clk 0:00:53]} 25. Bd1 {[%clk 0:01:54]}  Ke7 {[%clk 0:00:34]} 26. Ba4 {[%clk 0:01:47]}  Rc8 {[%clk 0:00:33]} 27. Qg5+ {[%clk 0:01:45]}  Kd6 {[%clk 0:00:32]} 28. e5+ {[%clk 0:01:44]}  Kc7 {[%clk 0:00:31]} 29. Qe7+ {[%clk 0:01:43]}  Kb8 {[%clk 0:00:31]} 30. f4 {[%clk 0:01:39]}  Rc7 {[%clk 0:00:30]} 31. Qh4 {[%clk 0:01:35]}  Rb7 {[%clk 0:00:26]} 32. Kf2 {[%clk 0:01:23]}  Rb2+ {[%clk 0:00:25]} 33. Kg1 {[%clk 0:01:21]}  Nf5 {[%clk 0:00:16]} 34. Qh7 {[%clk 0:01:16]}  Rg7 {[%clk 0:00:15]} 35. Qh8+ {[%clk 0:01:15]}  Kc7 {[%clk 0:00:10]} 36. Qe8 {[%clk 0:01:13]}  Nd4 {[%clk 0:00:08]} 37. Qf8 {[%clk 0:01:08]}  Rh7 {[%clk 0:00:08]} 38. Qxc5+ {[%clk 0:01:07]}  Kb7 {[%clk 0:00:05]} 39. Qxd4 {[%clk 0:01:06]}  Rb1+ {[%clk 0:00:05]} 40. Kf2 {[%clk 0:01:06]}  Rhh1 {[%clk 0:00:06]} 41. Qd7+ {[%clk 0:01:04]}  Ka6 {[%clk 0:00:06]} 42. Bb5+ {[%clk 0:01:00]}  Ka5 {[%clk 0:00:06]} 1-0


[Site "https://www.chess.com"]

[Event "Titled Tuesday Blitz May 16 Late 2023"]
[White "Korchmar, Vasiliy"]
[Black "Geivondian, Arman"]
[WhiteFideId "24131750"]
[BlackFideId "24102032"]
[WhiteElo "2370"]
[BlackElo "2278"]
[Result "0-1"]
[Round "09"]
[TimeControl "180+2"]
[Date "2023.05.16"]
[WhiteClock "0:00:00"]
[BlackClock "0:01:16"]

1. e4 {[%clk 0:03:00]}  c6 {[%clk 0:02:57]} 2. d4 {[%clk 0:03:00]}  d5 {[%clk 0:02:58]} 3. e5 {[%clk 0:03:01]}  Bf5 {[%clk 0:02:58]} 4. Nd2 {[%clk 0:03:01]}  e6 {[%clk 0:02:58]} 5. Nb3 {[%clk 0:03:02]}  Nd7 {[%clk 0:02:58]} 6. Nf3 {[%clk 0:03:01]}  h6 {[%clk 0:02:59]} 7. Be2 {[%clk 0:03:01]}  g5 {[%clk 0:02:59]} 8. O-O {[%clk 0:03:01]}  Bg7 {[%clk 0:03:00]} 9. Ne1 {[%clk 0:02:55]}  Ne7 {[%clk 0:03:00]} 10. f4 {[%clk 0:02:56]}  gxf4 {[%clk 0:02:54]} 11. Nd3 {[%clk 0:02:55]}  Qc7 {[%clk 0:02:54]} 12. Nxf4 {[%clk 0:02:54]}  O-O-O {[%clk 0:02:55]} 13. Nh5 {[%clk 0:02:51]}  Rhg8 {[%clk 0:02:55]} 14. Nxg7 {[%clk 0:02:39]}  Rxg7 {[%clk 0:02:56]} 15. Bxh6 {[%clk 0:02:39]}  Rg6 {[%clk 0:02:56]} 16. Bd2 {[%clk 0:02:36]}  f6 {[%clk 0:02:54]} 17. Bb4 {[%clk 0:02:25]}  Rdg8 {[%clk 0:02:50]} 18. Bf3 {[%clk 0:01:42]}  fxe5 {[%clk 0:02:42]} 19. Bxe7 {[%clk 0:01:23]}  e4 {[%clk 0:02:42]} 20. Bh4 {[%clk 0:01:11]}  exf3 {[%clk 0:02:42]} 21. Bg3 {[%clk 0:01:12]}  fxg2 {[%clk 0:02:19]} 22. Rxf5 {[%clk 0:01:11]}  Rxg3 {[%clk 0:02:18]} 23. Rf7 {[%clk 0:01:04]}  Rh3 {[%clk 0:02:16]} 24. Kf2 {[%clk 0:00:33]}  g1=Q+ {[%clk 0:02:12]} 25. Qxg1 {[%clk 0:00:33]}  Rxg1 {[%clk 0:02:13]} 26. Rxg1 {[%clk 0:00:32]}  Rxh2+ {[%clk 0:02:12]} 27. Ke1 {[%clk 0:00:31]}  Qd6 {[%clk 0:02:02]} 28. Nc5 {[%clk 0:00:22]}  Nxc5 {[%clk 0:01:34]} 29. Rg8+ {[%clk 0:00:14]}  Qd8 {[%clk 0:01:34]} 30. Rxd8+ {[%clk 0:00:14]}  Kxd8 {[%clk 0:01:35]} 31. dxc5 {[%clk 0:00:15]}  Rxc2 {[%clk 0:01:33]} 32. Rxb7 {[%clk 0:00:15]}  Rxc5 {[%clk 0:01:34]} 33. Rxa7 {[%clk 0:00:15]}  Rb5 {[%clk 0:01:33]} 34. b3 {[%clk 0:00:14]}  Kc8 {[%clk 0:01:33]} 35. Re7 {[%clk 0:00:12]}  Ra5 {[%clk 0:01:32]} 36. a4 {[%clk 0:00:12]}  c5 {[%clk 0:01:28]} 37. Rxe6 {[%clk 0:00:10]}  Kd7 {[%clk 0:01:28]} 38. Rb6 {[%clk 0:00:06]}  Ra8 {[%clk 0:01:28]} 39. Kd2 {[%clk 0:00:05]}  Rh8 {[%clk 0:01:28]} 40. Kc3 {[%clk 0:00:05]}  Rh3+ {[%clk 0:01:28]} 41. Kc2 {[%clk 0:00:05]}  Kc7 {[%clk 0:01:29]} 42. Rg6 {[%clk 0:00:05]}  Kb7 {[%clk 0:01:28]} 43. a5 {[%clk 0:00:05]}  Rh1 {[%clk 0:01:27]} 44. Rd6 {[%clk 0:00:03]}  d4 {[%clk 0:01:26]} 45. Kd3 {[%clk 0:00:04]}  Ra1 {[%clk 0:01:25]} 46. Rb6+ {[%clk 0:00:02]}  Kc7 {[%clk 0:01:25]} 47. Kc4 {[%clk 0:00:02]}  Rxa5 {[%clk 0:01:25]} 48. Rh6 {[%clk 0:00:03]}  Kd7 {[%clk 0:01:22]} 49. Rh7+ {[%clk 0:00:02]}  Kd6 {[%clk 0:01:22]} 50. Rh6+ {[%clk 0:00:02]}  Ke5 {[%clk 0:01:23]} 51. Rh5+ {[%clk 0:00:02]}  Ke4 {[%clk 0:01:23]} 52. Rh8 {[%clk 0:00:03]}  Ke3 {[%clk 0:01:21]} 53. Re8+ {[%clk 0:00:03]}  Kd2 {[%clk 0:01:21]} 54. b4 {[%clk 0:00:03]}  cxb4 {[%clk 0:01:20]} 55. Kxb4 {[%clk 0:00:03]}  Ra7 {[%clk 0:01:18]} 56. Rd8 {[%clk 0:00:03]}  d3 {[%clk 0:01:18]} 57. Kc4 {[%clk 0:00:04]}  Rc7+ {[%clk 0:01:18]} 58. Kb3 {[%clk 0:00:04]}  Ke2 {[%clk 0:01:18]} 59. Re8+ {[%clk 0:00:04]}  Kd1 {[%clk 0:01:19]} 60. Rh8 {[%clk 0:00:03]}  d2 {[%clk 0:01:16]} 61. Kb2 {[%clk 0:00:03]}  Rb7+ {[%clk 0:01:16]} 62. Kc3 {[%clk 0:00:00]}  Kc1 {[%clk 0:01:16]} 0-1


[Site "https://www.chess.com"]

[Event "Titled Tuesday Blitz May 16 Late 2023"]
[White "Lucas, Arthur"]
[Black "Spata, German"]
[WhiteFideId "26093073"]
[BlackFideId "113026"]
[WhiteElo "2251"]
[BlackElo "2260"]
[Result "1/2-1/2"]
[Round "09"]
[TimeControl "180+2"]
[Date "2023.05.16"]
[WhiteClock "0:00:04"]
[BlackClock "0:00:15"]

1. e4 {[%clk 0:02:48]}  e6 {[%clk 0:02:59]} 2. d4 {[%clk 0:02:19]}  d5 {[%clk 0:02:59]} 3. Nc3 {[%clk 0:02:18]}  Nf6 {[%clk 0:02:58]} 4. e5 {[%clk 0:02:19]}  Nfd7 {[%clk 0:02:58]} 5. f4 {[%clk 0:02:19]}  c5 {[%clk 0:02:58]} 6. Nf3 {[%clk 0:02:20]}  Nc6 {[%clk 0:02:59]} 7. Be3 {[%clk 0:02:21]}  cxd4 {[%clk 0:02:57]} 8. Nxd4 {[%clk 0:02:22]}  Bc5 {[%clk 0:02:57]} 9. Qd2 {[%clk 0:02:22]}  Bxd4 {[%clk 0:02:57]} 10. Bxd4 {[%clk 0:02:23]}  Nxd4 {[%clk 0:02:57]} 11. Qxd4 {[%clk 0:02:23]}  Qb6 {[%clk 0:02:58]} 12. Qxb6 {[%clk 0:02:18]}  Nxb6 {[%clk 0:02:58]} 13. Nb5 {[%clk 0:02:18]}  Ke7 {[%clk 0:02:58]} 14. Bd3 {[%clk 0:02:10]}  Bd7 {[%clk 0:02:58]} 15. Nd6 {[%clk 0:02:09]}  Bc6 {[%clk 0:02:56]} 16. O-O-O {[%clk 0:02:07]}  Nc8 {[%clk 0:02:50]} 17. Nxc8+ {[%clk 0:02:01]}  Raxc8 {[%clk 0:02:49]} 18. g4 {[%clk 0:01:53]}  f6 {[%clk 0:02:49]} 19. exf6+ {[%clk 0:01:52]}  gxf6 {[%clk 0:02:49]} 20. Rhe1 {[%clk 0:01:50]}  Kd6 {[%clk 0:02:45]} 21. g5 {[%clk 0:01:36]}  Rcg8 {[%clk 0:02:23]} 22. h4 {[%clk 0:01:25]}  Be8 {[%clk 0:01:56]} 23. f5 {[%clk 0:00:35]}  e5 {[%clk 0:01:34]} 24. Bc4 {[%clk 0:00:25]}  Bf7 {[%clk 0:01:32]} 25. Bxd5 {[%clk 0:00:23]}  Bxd5 {[%clk 0:01:32]} 26. c4 {[%clk 0:00:24]}  fxg5 {[%clk 0:01:28]} 27. Rxd5+ {[%clk 0:00:23]}  Kc6 {[%clk 0:01:28]} 28. hxg5 {[%clk 0:00:15]}  Rxg5 {[%clk 0:01:28]} 29. Rexe5 {[%clk 0:00:15]}  Rf8 {[%clk 0:01:22]} 30. Re6+ {[%clk 0:00:14]}  Kc7 {[%clk 0:01:22]} 31. f6 {[%clk 0:00:13]}  Rg6 {[%clk 0:01:01]} 32. Re7+ {[%clk 0:00:08]}  Kc6 {[%clk 0:00:52]} 33. Re6+ {[%clk 0:00:08]}  Kc7 {[%clk 0:00:51]} 34. Re7+ {[%clk 0:00:09]}  Kc6 {[%clk 0:00:52]} 35. f7 {[%clk 0:00:01]}  Rf6 {[%clk 0:00:36]} 36. Rdd7 {[%clk 0:00:02]}  h5 {[%clk 0:00:36]} 37. Kc2 {[%clk 0:00:02]}  h4 {[%clk 0:00:36]} 38. b4 {[%clk 0:00:02]}  Rf3 {[%clk 0:00:30]} 39. Rc7+ {[%clk 0:00:02]}  Kd6 {[%clk 0:00:30]} 40. Rcd7+ {[%clk 0:00:03]}  Kc6 {[%clk 0:00:30]} 41. b5+ {[%clk 0:00:02]}  Kc5 {[%clk 0:00:30]} 42. Rc7+ {[%clk 0:00:02]}  Kb4 {[%clk 0:00:28]} 43. Rxb7 {[%clk 0:00:02]}  h3 {[%clk 0:00:23]} 44. a3+ {[%clk 0:00:02]}  Kxc4 {[%clk 0:00:20]} 45. Rec7+ {[%clk 0:00:01]}  Kd5 {[%clk 0:00:20]} 46. Rd7+ {[%clk 0:00:02]}  Kc5 {[%clk 0:00:17]} 47. Rxa7 {[%clk 0:00:01]}  h2 {[%clk 0:00:16]} 48. Rac7+ {[%clk 0:00:02]}  Kxb5 {[%clk 0:00:15]} 49. Rd1 {[%clk 0:00:01]}  R8xf7 {[%clk 0:00:14]} 50. Rb1+ {[%clk 0:00:01]}  Ka6 {[%clk 0:00:14]} 51. Rxf7 {[%clk 0:00:01]}  Rxf7 {[%clk 0:00:14]} 52. Rh1 {[%clk 0:00:02]}  Rf2+ {[%clk 0:00:14]} 53. Kd3 {[%clk 0:00:02]}  Ka5 {[%clk 0:00:15]} 54. Ke3 {[%clk 0:00:03]}  Ra2 {[%clk 0:00:14]} 55. Kf3 {[%clk 0:00:03]}  Ka4 {[%clk 0:00:15]} 56. Kg3 {[%clk 0:00:03]}  Kxa3 {[%clk 0:00:15]} 57. Rxh2 {[%clk 0:00:03]}  Rxh2 {[%clk 0:00:15]} 58. Kxh2 {[%clk 0:00:04]} 1/2-1/2


[Site "https://www.chess.com"]

[Event "Titled Tuesday Blitz May 16 Late 2023"]
[White "Shapiro, Viktor"]
[Black "Eugene, Floryan"]
[WhiteFideId "4175700"]
[BlackFideId "20694784"]
[WhiteElo "2152"]
[BlackElo "2369"]
[Result "1-0"]
[Round "09"]
[TimeControl "180+2"]
[Date "2023.05.16"]
[WhiteClock "0:00:06"]
[BlackClock "0:00:04"]

1. c4 {[%clk 0:03:00]}  b6 {[%clk 0:02:51]} 2. Nf3 {[%clk 0:02:59]}  Bb7 {[%clk 0:02:52]} 3. g3 {[%clk 0:03:00]}  e6 {[%clk 0:02:52]} 4. Bg2 {[%clk 0:03:01]}  Nf6 {[%clk 0:02:52]} 5. O-O {[%clk 0:03:01]}  Be7 {[%clk 0:02:53]} 6. d4 {[%clk 0:03:01]}  O-O {[%clk 0:02:53]} 7. Nc3 {[%clk 0:03:02]}  d6 {[%clk 0:02:47]} 8. Qd3 {[%clk 0:02:58]}  Nbd7 {[%clk 0:02:47]} 9. b3 {[%clk 0:02:44]}  Re8 {[%clk 0:02:46]} 10. Bb2 {[%clk 0:02:45]}  Bf8 {[%clk 0:02:44]} 11. Rad1 {[%clk 0:02:44]}  Qc8 {[%clk 0:02:43]} 12. e4 {[%clk 0:02:39]}  c5 {[%clk 0:02:41]} 13. d5 {[%clk 0:02:38]}  exd5 {[%clk 0:02:40]} 14. exd5 {[%clk 0:02:38]}  a6 {[%clk 0:02:38]} 15. Rfe1 {[%clk 0:02:36]}  Qc7 {[%clk 0:02:38]} 16. a4 {[%clk 0:02:29]}  Rxe1+ {[%clk 0:02:29]} 17. Rxe1 {[%clk 0:02:29]}  Re8 {[%clk 0:02:30]} 18. Rxe8 {[%clk 0:02:28]}  Nxe8 {[%clk 0:02:31]} 19. Ng5 {[%clk 0:02:25]}  Ndf6 {[%clk 0:02:25]} 20. Nce4 {[%clk 0:02:25]}  Be7 {[%clk 0:01:42]} 21. Nxf6+ {[%clk 0:02:23]}  Nxf6 {[%clk 0:01:43]} 22. Bxf6 {[%clk 0:02:23]}  Bxf6 {[%clk 0:01:44]} 23. Qxh7+ {[%clk 0:02:23]}  Kf8 {[%clk 0:01:44]} 24. Qh8+ {[%clk 0:02:21]}  Ke7 {[%clk 0:01:44]} 25. Ne4 {[%clk 0:02:20]}  Bd4 {[%clk 0:01:33]} 26. Qh4+ {[%clk 0:02:12]}  Kf8 {[%clk 0:01:32]} 27. Bh3 {[%clk 0:02:00]}  g6 {[%clk 0:01:27]} 28. Kg2 {[%clk 0:01:43]}  b5 {[%clk 0:01:25]} 29. axb5 {[%clk 0:01:42]}  axb5 {[%clk 0:01:25]} 30. Qf4 {[%clk 0:01:27]}  Be5 {[%clk 0:01:22]} 31. Qc1 {[%clk 0:01:17]}  bxc4 {[%clk 0:01:20]} 32. bxc4 {[%clk 0:01:17]}  Kg7 {[%clk 0:01:18]} 33. Ng5 {[%clk 0:01:04]}  Qe7 {[%clk 0:01:09]} 34. Bg4 {[%clk 0:00:52]}  Bf6 {[%clk 0:01:08]} 35. h4 {[%clk 0:00:49]}  Bxg5 {[%clk 0:01:00]} 36. hxg5 {[%clk 0:00:46]}  Qe4+ {[%clk 0:01:00]} 37. Bf3 {[%clk 0:00:45]}  Qe5 {[%clk 0:00:59]} 38. Qf4 {[%clk 0:00:43]}  Qxf4 {[%clk 0:00:48]} 39. gxf4 {[%clk 0:00:43]}  f5 {[%clk 0:00:45]} 40. Kf1 {[%clk 0:00:41]}  Ba6 {[%clk 0:00:41]} 41. Be2 {[%clk 0:00:42]}  Bc8 {[%clk 0:00:41]} 42. Ke1 {[%clk 0:00:41]}  Bd7 {[%clk 0:00:42]} 43. Kd2 {[%clk 0:00:42]}  Kf7 {[%clk 0:00:43]} 44. Kc3 {[%clk 0:00:42]}  Ke7 {[%clk 0:00:43]} 45. Bd1 {[%clk 0:00:42]}  Kd8 {[%clk 0:00:44]} 46. Bc2 {[%clk 0:00:41]}  Kc7 {[%clk 0:00:43]} 47. Kb2 {[%clk 0:00:40]}  Kb6 {[%clk 0:00:44]} 48. Ka3 {[%clk 0:00:40]}  Ka5 {[%clk 0:00:44]} 49. Bb3 {[%clk 0:00:40]}  Bc8 {[%clk 0:00:44]} 50. Ba4 {[%clk 0:00:39]}  Ba6 {[%clk 0:00:44]} 51. Be8 {[%clk 0:00:29]}  Bxc4 {[%clk 0:00:44]} 52. Bxg6 {[%clk 0:00:29]}  Bxd5 {[%clk 0:00:45]} 53. Bxf5 {[%clk 0:00:30]}  Bg8 {[%clk 0:00:45]} 54. g6 {[%clk 0:00:29]}  Kb6 {[%clk 0:00:42]} 55. Bg4 {[%clk 0:00:20]}  Kc7 {[%clk 0:00:30]} 56. f5 {[%clk 0:00:20]}  Kd8 {[%clk 0:00:29]} 57. f6 {[%clk 0:00:20]}  Bd5 {[%clk 0:00:22]} 58. f4 {[%clk 0:00:18]}  Ke8 {[%clk 0:00:22]} 59. Bh5 {[%clk 0:00:18]}  Kf8 {[%clk 0:00:21]} 60. Kb2 {[%clk 0:00:18]}  Be6 {[%clk 0:00:18]} 61. Kc3 {[%clk 0:00:18]}  d5 {[%clk 0:00:18]} 62. g7+ {[%clk 0:00:17]}  Kg8 {[%clk 0:00:18]} 63. Bg6 {[%clk 0:00:18]}  d4+ {[%clk 0:00:11]} 64. Kd3 {[%clk 0:00:18]}  Bb3 {[%clk 0:00:11]} 65. Be8 {[%clk 0:00:12]}  Ba2 {[%clk 0:00:10]} 66. Bb5 {[%clk 0:00:05]}  Bb1+ {[%clk 0:00:07]} 67. Kc4 {[%clk 0:00:06]}  d3 {[%clk 0:00:06]} 68. Kxc5 {[%clk 0:00:04]}  Ba2 {[%clk 0:00:06]} 69. Bxd3 {[%clk 0:00:03]}  Bf7 {[%clk 0:00:01]} 70. Bc4 {[%clk 0:00:03]}  Bxc4 {[%clk 0:00:01]} 71. Kxc4 {[%clk 0:00:04]}  Kf7 {[%clk 0:00:02]} 72. Kd5 {[%clk 0:00:04]}  Kg8 {[%clk 0:00:03]} 73. Ke6 {[%clk 0:00:05]}  Kh7 {[%clk 0:00:03]} 74. Kf7 {[%clk 0:00:05]}  Kh6 {[%clk 0:00:03]} 75. g8=Q {[%clk 0:00:06]}  Kh5 {[%clk 0:00:04]} 76. Qg5# {[%clk 0:00:06]} 1-0


[Site "https://www.chess.com"]

[Event "Titled Tuesday Blitz May 16 Late 2023"]
[White "Potapova, Margarita"]
[Black "Toniutti, Ezio"]
[WhiteFideId "14126869"]
[BlackFideId "113034"]
[WhiteElo "2244"]
[BlackElo "2215"]
[Result "1-0"]
[Round "09"]
[TimeControl "180+2"]
[Date "2023.05.16"]
[WhiteClock "0:00:56"]
[BlackClock "0:00:11"]

1. Nf3 {[%clk 0:02:53]}  d5 {[%clk 0:02:59]} 2. d4 {[%clk 0:02:53]}  c6 {[%clk 0:03:00]} 3. c4 {[%clk 0:02:54]}  Nf6 {[%clk 0:03:00]} 4. e3 {[%clk 0:02:53]}  Bf5 {[%clk 0:02:59]} 5. Nc3 {[%clk 0:02:54]}  e6 {[%clk 0:02:59]} 6. Nh4 {[%clk 0:02:54]}  Be4 {[%clk 0:02:59]} 7. f3 {[%clk 0:02:54]}  Bg6 {[%clk 0:03:00]} 8. Qb3 {[%clk 0:02:55]}  Qc7 {[%clk 0:02:59]} 9. Nxg6 {[%clk 0:02:54]}  hxg6 {[%clk 0:02:59]} 10. Bd2 {[%clk 0:02:55]}  Be7 {[%clk 0:02:59]} 11. O-O-O {[%clk 0:02:56]}  a5 {[%clk 0:02:57]} 12. Kb1 {[%clk 0:02:55]}  dxc4 {[%clk 0:02:55]} 13. Bxc4 {[%clk 0:02:54]}  b5 {[%clk 0:02:55]} 14. Bd3 {[%clk 0:02:54]}  Nbd7 {[%clk 0:02:53]} 15. Qc2 {[%clk 0:02:52]}  Rc8 {[%clk 0:02:38]} 16. Rc1 {[%clk 0:02:51]}  Qb7 {[%clk 0:02:15]} 17. Nxb5 {[%clk 0:02:48]}  O-O {[%clk 0:02:15]} 18. Nc3 {[%clk 0:02:46]}  c5 {[%clk 0:02:15]} 19. Qb3 {[%clk 0:02:40]}  Qa8 {[%clk 0:02:05]} 20. Ne4 {[%clk 0:02:32]}  a4 {[%clk 0:01:59]} 21. Qa3 {[%clk 0:02:20]}  c4 {[%clk 0:01:19]} 22. Qxe7 {[%clk 0:02:19]}  cxd3 {[%clk 0:01:19]} 23. Nd6 {[%clk 0:02:15]}  Rb8 {[%clk 0:01:14]} 24. e4 {[%clk 0:01:58]}  Qa7 {[%clk 0:01:03]} 25. Bc3 {[%clk 0:01:53]}  a3 {[%clk 0:01:01]} 26. b3 {[%clk 0:01:52]}  Qa6 {[%clk 0:00:47]} 27. Ka1 {[%clk 0:01:46]}  Nb6 {[%clk 0:00:35]} 28. Rhd1 {[%clk 0:01:31]}  Nc8 {[%clk 0:00:35]} 29. Nxc8 {[%clk 0:01:31]}  Rbxc8 {[%clk 0:00:35]} 30. Qb4 {[%clk 0:01:24]}  Rc7 {[%clk 0:00:30]} 31. Qxf8+ {[%clk 0:01:21]}  Kxf8 {[%clk 0:00:27]} 32. Bb4+ {[%clk 0:01:21]}  Kg8 {[%clk 0:00:27]} 33. Rxc7 {[%clk 0:01:22]}  Nh5 {[%clk 0:00:26]} 34. Rc4 {[%clk 0:01:19]}  Nf4 {[%clk 0:00:22]} 35. g3 {[%clk 0:01:19]}  Ne2 {[%clk 0:00:17]} 36. Rxd3 {[%clk 0:01:18]}  Qb7 {[%clk 0:00:15]} 37. Rd2 {[%clk 0:01:16]}  Ng1 {[%clk 0:00:15]} 38. Rf2 {[%clk 0:01:13]}  Nh3 {[%clk 0:00:14]} 39. Rf1 {[%clk 0:01:11]}  f5 {[%clk 0:00:14]} 40. Re1 {[%clk 0:01:04]}  fxe4 {[%clk 0:00:13]} 41. fxe4 {[%clk 0:01:04]}  Ng5 {[%clk 0:00:13]} 42. d5 {[%clk 0:00:58]}  exd5 {[%clk 0:00:13]} 43. exd5 {[%clk 0:00:59]}  Qxd5 {[%clk 0:00:12]} 44. Re8+ {[%clk 0:00:57]}  Kh7 {[%clk 0:00:11]} 45. Rh4# {[%clk 0:00:56]} 1-0


[Site "https://www.chess.com"]